[Event "December 5 Late 2023"]
[Site "https://www.chess.com"]
[Date "2023.12.05"]
[Round "9"]
[White "Xiong, Jeffery"]
[Black "Carlsen, Magnus"]
[Result "0-1"]
[Board "1"]
[TimeControl "180+1"]
[WhiteFideId "2047640"]
[BlackFideId "1503014"]
[WhiteElo "3046"]
[BlackElo "3316"]
[WhiteTeam "USA"]
[BlackTeam "NOR"]
[WhiteClock "0:00:00"]
[BlackClock "0:00:03"]

1. Nf3 {[%clk 0:03:00]}  Nc6 {[%clk 0:03:00]} 2. e4 {[%clk 0:03:00]}  d6 {[%clk 0:03:00]} 3. d4 {[%clk 0:03:00]}  Nf6 {[%clk 0:03:00]} 4. Nc3 {[%clk 0:03:00]}  g6 {[%clk 0:03:00]} 5. Be3 {[%clk 0:03:00]}  Bg7 {[%clk 0:03:00]} 6. Qd2 {[%clk 0:03:00]}  O-O {[%clk 0:03:00]} 7. O-O-O {[%clk 0:03:00]}  a6 {[%clk 0:02:55]} 8. Bh6 {[%clk 0:02:59]}  b5 {[%clk 0:02:55]} 9. h4 {[%clk 0:02:58]}  b4 {[%clk 0:02:54]} 10. Nd5 {[%clk 0:02:51]}  Nxe4 {[%clk 0:02:53]} 11. Qe3 {[%clk 0:02:43]}  Nf6 {[%clk 0:02:44]} 12. Bxg7 {[%clk 0:02:12]}  Kxg7 {[%clk 0:02:45]} 13. Bc4 {[%clk 0:02:12]}  h5 {[%clk 0:02:37]} 14. Rhe1 {[%clk 0:01:47]}  Na5 {[%clk 0:02:34]} 15. Nxf6 {[%clk 0:01:42]}  exf6 {[%clk 0:02:35]} 16. Bd3 {[%clk 0:01:35]}  Bg4 {[%clk 0:02:34]} 17. Qf4 {[%clk 0:01:30]}  Qd7 {[%clk 0:02:33]} 18. d5 {[%clk 0:01:21]}  Rab8 {[%clk 0:02:28]} 19. Rd2 {[%clk 0:01:16]}  Rfe8 {[%clk 0:02:18]} 20. Rxe8 {[%clk 0:01:11]}  Qxe8 {[%clk 0:02:18]} 21. Re2 {[%clk 0:01:07]}  Qd7 {[%clk 0:02:02]} 22. Re1 {[%clk 0:01:02]}  Bxf3 {[%clk 0:02:02]} 23. Qxf3 {[%clk 0:01:00]}  Nb7 {[%clk 0:02:00]} 24. Bxa6 {[%clk 0:00:55]}  Nc5 {[%clk 0:01:55]} 25. Bc4 {[%clk 0:00:56]}  Qg4 {[%clk 0:01:36]} 26. Qxg4 {[%clk 0:00:55]}  hxg4 {[%clk 0:01:36]} 27. Re7 {[%clk 0:00:50]}  Rc8 {[%clk 0:01:31]} 28. c3 {[%clk 0:00:36]}  bxc3 {[%clk 0:01:16]} 29. b4 {[%clk 0:00:37]}  Na4 {[%clk 0:01:15]} 30. Bb3 {[%clk 0:00:37]}  Nb6 {[%clk 0:01:14]} 31. a4 {[%clk 0:00:38]}  f5 {[%clk 0:01:13]} 32. a5 {[%clk 0:00:36]}  Kf6 {[%clk 0:01:13]} 33. Re3 {[%clk 0:00:33]}  Nd7 {[%clk 0:01:10]} 34. Rxc3 {[%clk 0:00:33]}  Ke5 {[%clk 0:01:09]} 35. Re3+ {[%clk 0:00:22]}  Kd4 {[%clk 0:01:09]} 36. Kd2 {[%clk 0:00:20]}  Ne5 {[%clk 0:01:09]} 37. Rc3 {[%clk 0:00:16]}  Rb8 {[%clk 0:00:58]} 38. a6 {[%clk 0:00:16]}  Ra8 {[%clk 0:00:41]} 39. b5 {[%clk 0:00:16]}  Ra7 {[%clk 0:00:41]} 40. Rxc7 {[%clk 0:00:12]}  Rxc7 {[%clk 0:00:42]} 41. b6 {[%clk 0:00:13]}  Rc3 {[%clk 0:00:42]} 42. a7 {[%clk 0:00:10]}  Rxb3 {[%clk 0:00:42]} 43. a8=Q {[%clk 0:00:09]}  Nc4+ {[%clk 0:00:40]} 44. Ke2 {[%clk 0:00:08]}  Rb2+ {[%clk 0:00:40]} 45. Ke1 {[%clk 0:00:08]}  Rxb6 {[%clk 0:00:38]} 46. Qa7 {[%clk 0:00:07]}  Kd3 {[%clk 0:00:33]} 47. Qa1 {[%clk 0:00:02]}  Nd2 {[%clk 0:00:29]} 48. Qa3+ {[%clk 0:00:02]}  Rb3 {[%clk 0:00:29]} 49. Qa6+ {[%clk 0:00:02]}  Nc4 {[%clk 0:00:29]} 50. Qa2 {[%clk 0:00:02]}  Rb2 {[%clk 0:00:26]} 51. Qa1 {[%clk 0:00:02]}  f4 {[%clk 0:00:22]} 52. Qd1+ {[%clk 0:00:02]}  Nd2 {[%clk 0:00:22]} 53. Qe2+ {[%clk 0:00:03]}  Kd4 {[%clk 0:00:11]} 54. Qxg4 {[%clk 0:00:04]}  Ne4 {[%clk 0:00:11]} 55. Qxf4 {[%clk 0:00:03]}  Rxf2 {[%clk 0:00:10]} 56. Qg4 {[%clk 0:00:01]}  Kxd5 {[%clk 0:00:08]} 57. h5 {[%clk 0:00:02]}  gxh5 {[%clk 0:00:09]} 58. Qxh5+ {[%clk 0:00:02]}  Kd4 {[%clk 0:00:10]} 59. Qh6 {[%clk 0:00:01]}  f6 {[%clk 0:00:06]} 60. g4 {[%clk 0:00:01]}  d5 {[%clk 0:00:03]} 61. Qg6 {[%clk 0:00:01]}  Ke3 {[%clk 0:00:03]} 62. Qh6+ {[%clk 0:00:02]}  Rf4 {[%clk 0:00:03]} 63. Qh3+ {[%clk 0:00:02]}  Rf3 {[%clk 0:00:03]} 64. Qh6+ {[%clk 0:00:03]}  Ng5 {[%clk 0:00:04]} 65. Qg6 {[%clk 0:00:02]}  d4 {[%clk 0:00:03]} 66. Kd1 {[%clk 0:00:02]}  d3 {[%clk 0:00:02]} 67. Kc1 {[%clk 0:00:03]}  Rf1+ {[%clk 0:00:02]} 68. Kb2 {[%clk 0:00:00]}  d2 {[%clk 0:00:03]} 0-1

[Event "December 5 Late 2023"]
[Site "https://www.chess.com"]
[Date "2023.12.05"]
[Round "9"]
[White "Duda, Jan-Krzysztof"]
[Black "Pranav, V"]
[Result "1-0"]
[Board "2"]
[TimeControl "180+1"]
[WhiteFideId "1170546"]
[BlackFideId "25060783"]
[WhiteElo "3059"]
[BlackElo "3070"]
[WhiteTeam "POL"]
[BlackTeam "IND"]
[WhiteClock "0:00:19"]
[BlackClock "0:00:00"]

1. c4 {[%clk 0:03:00]}  e5 {[%clk 0:02:59]} 2. g3 {[%clk 0:03:01]}  Nf6 {[%clk 0:02:59]} 3. Bg2 {[%clk 0:03:00]}  g6 {[%clk 0:02:59]} 4. Nc3 {[%clk 0:02:59]}  Bg7 {[%clk 0:02:59]} 5. Nf3 {[%clk 0:02:50]}  Nc6 {[%clk 0:02:58]} 6. O-O {[%clk 0:02:48]}  O-O {[%clk 0:02:58]} 7. d3 {[%clk 0:02:45]}  d6 {[%clk 0:02:57]} 8. Rb1 {[%clk 0:02:45]}  a5 {[%clk 0:02:57]} 9. a3 {[%clk 0:02:45]}  Nd4 {[%clk 0:02:58]} 10. b4 {[%clk 0:02:36]}  axb4 {[%clk 0:02:57]} 11. axb4 {[%clk 0:02:37]}  c6 {[%clk 0:02:58]} 12. b5 {[%clk 0:02:36]}  Bd7 {[%clk 0:02:54]} 13. Be3 {[%clk 0:02:24]}  Nf5 {[%clk 0:02:37]} 14. Bg5 {[%clk 0:02:18]}  h6 {[%clk 0:02:15]} 15. Bxf6 {[%clk 0:02:17]}  Bxf6 {[%clk 0:02:15]} 16. e3 {[%clk 0:02:16]}  Bg7 {[%clk 0:02:12]} 17. Nd2 {[%clk 0:02:14]}  Ne7 {[%clk 0:01:57]} 18. Qc2 {[%clk 0:01:43]}  Qc7 {[%clk 0:01:50]} 19. Nde4 {[%clk 0:01:28]}  Be6 {[%clk 0:01:48]} 20. Ra1 {[%clk 0:01:19]}  f5 {[%clk 0:01:39]} 21. Nd2 {[%clk 0:01:18]}  Kh7 {[%clk 0:01:33]} 22. Qb3 {[%clk 0:01:17]}  Rfd8 {[%clk 0:01:10]} 23. Rfb1 {[%clk 0:01:14]}  Rxa1 {[%clk 0:01:05]} 24. Rxa1 {[%clk 0:01:15]}  d5 {[%clk 0:01:06]} 25. cxd5 {[%clk 0:00:59]}  cxd5 {[%clk 0:01:04]} 26. Ne2 {[%clk 0:00:58]}  Qd7 {[%clk 0:01:00]} 27. d4 {[%clk 0:00:57]}  Nc8 {[%clk 0:00:54]} 28. Qb4 {[%clk 0:00:52]}  exd4 {[%clk 0:00:33]} 29. Nxd4 {[%clk 0:00:52]}  Bxd4 {[%clk 0:00:34]} 30. Qxd4 {[%clk 0:00:52]}  Qxb5 {[%clk 0:00:31]} 31. Rc1 {[%clk 0:00:50]}  Qd7 {[%clk 0:00:21]} 32. Nf3 {[%clk 0:00:48]}  Ne7 {[%clk 0:00:15]} 33. Qf6 {[%clk 0:00:42]}  Rg8 {[%clk 0:00:06]} 34. Ne5 {[%clk 0:00:33]}  Qd6 {[%clk 0:00:06]} 35. Nd3 {[%clk 0:00:28]}  Nc8 {[%clk 0:00:02]} 36. Rxc8 {[%clk 0:00:19]}  Rxc8 {[%clk 0:00:00]} 37. Nf4 {[%clk 0:00:19]} 1-0

[Event "December 5 Late 2023"]
[Site "https://www.chess.com"]
[Date "2023.12.05"]
[Round "9"]
[White "Andreikin, Dmitry"]
[Black "Deac, Bogdan-Daniel"]
[Result "0-1"]
[Board "3"]
[TimeControl "180+1"]
[WhiteFideId "4158814"]
[BlackFideId "1226380"]
[WhiteElo "3114"]
[BlackElo "3007"]
[WhiteTeam "FID"]
[BlackTeam "ROU"]
[WhiteClock "0:01:14"]
[BlackClock "0:00:17"]

1. Nf3 {[%clk 0:03:00]}  d5 {[%clk 0:02:58]} 2. g3 {[%clk 0:03:00]}  Nf6 {[%clk 0:02:59]} 3. Bg2 {[%clk 0:03:00]}  e6 {[%clk 0:02:59]} 4. O-O {[%clk 0:02:59]}  Be7 {[%clk 0:03:00]} 5. d3 {[%clk 0:03:00]}  O-O {[%clk 0:03:00]} 6. a4 {[%clk 0:03:00]}  Nc6 {[%clk 0:02:55]} 7. Nbd2 {[%clk 0:02:54]}  e5 {[%clk 0:02:54]} 8. e4 {[%clk 0:02:53]}  dxe4 {[%clk 0:02:53]} 9. dxe4 {[%clk 0:02:53]}  Bc5 {[%clk 0:02:34]} 10. c3 {[%clk 0:02:49]}  a5 {[%clk 0:02:34]} 11. Qc2 {[%clk 0:02:45]}  Qe7 {[%clk 0:02:30]} 12. Nh4 {[%clk 0:02:41]}  g6 {[%clk 0:02:29]} 13. Nb3 {[%clk 0:02:35]}  Bb6 {[%clk 0:02:08]} 14. Bg5 {[%clk 0:02:34]}  Rd8 {[%clk 0:01:45]} 15. Kh1 {[%clk 0:02:31]}  h6 {[%clk 0:01:43]} 16. Bc1 {[%clk 0:02:06]}  Be6 {[%clk 0:01:36]} 17. Nd2 {[%clk 0:02:01]}  Ng4 {[%clk 0:01:32]} 18. Ndf3 {[%clk 0:01:50]}  Bc4 {[%clk 0:00:50]} 19. h3 {[%clk 0:01:50]}  Bxf1 {[%clk 0:00:50]} 20. hxg4 {[%clk 0:01:49]}  Bd3 {[%clk 0:00:50]} 21. Qd2 {[%clk 0:01:44]}  Bxe4 {[%clk 0:00:44]} 22. Qxh6 {[%clk 0:01:44]}  Qf8 {[%clk 0:00:41]} 23. Qg5 {[%clk 0:01:40]}  f6 {[%clk 0:00:40]} 24. Qxg6+ {[%clk 0:01:22]}  Bxg6 {[%clk 0:00:32]} 25. Nxg6 {[%clk 0:01:23]}  Rd1+ {[%clk 0:00:31]} 26. Kh2 {[%clk 0:01:23]}  Rxc1 {[%clk 0:00:29]} 27. Nxf8 {[%clk 0:01:16]}  Rxa1 {[%clk 0:00:29]} 28. Nd7 {[%clk 0:01:16]}  Kf7 {[%clk 0:00:23]} 29. g5 {[%clk 0:01:17]}  fxg5 {[%clk 0:00:21]} 30. Ndxe5+ {[%clk 0:01:15]}  Nxe5 {[%clk 0:00:17]} 31. Nxe5+ {[%clk 0:01:14]}  Ke6 {[%clk 0:00:17]} 0-1

[Event "December 5 Late 2023"]
[Site "https://www.chess.com"]
[Date "2023.12.05"]
[Round "9"]
[White "Henriquez Villagra, Cristobal"]
[Black "Aronian, Levon"]
[Result "0-1"]
[Board "4"]
[TimeControl "180+1"]
[WhiteFideId "3409350"]
[BlackFideId "13300474"]
[WhiteElo "3000"]
[BlackElo "3108"]
[WhiteTeam "CHI"]
[BlackTeam "USA"]
[WhiteClock "0:00:00"]
[BlackClock "0:00:01"]

1. e4 {[%clk 0:02:59]}  c5 {[%clk 0:03:00]} 2. Nf3 {[%clk 0:03:00]}  e6 {[%clk 0:03:00]} 3. d4 {[%clk 0:03:00]}  cxd4 {[%clk 0:03:01]} 4. Nxd4 {[%clk 0:03:00]}  Nc6 {[%clk 0:03:01]} 5. Nc3 {[%clk 0:02:59]}  Qc7 {[%clk 0:03:02]} 6. f4 {[%clk 0:02:55]}  a6 {[%clk 0:03:01]} 7. a3 {[%clk 0:02:47]}  b5 {[%clk 0:02:31]} 8. Be3 {[%clk 0:02:47]}  Bb7 {[%clk 0:02:27]} 9. Be2 {[%clk 0:02:46]}  Rc8 {[%clk 0:02:10]} 10. O-O {[%clk 0:02:34]}  Bc5 {[%clk 0:01:56]} 11. Qd2 {[%clk 0:01:39]}  h5 {[%clk 0:01:31]} 12. Rad1 {[%clk 0:01:37]}  Nf6 {[%clk 0:01:29]} 13. Ndxb5 {[%clk 0:01:27]}  Bxe3+ {[%clk 0:01:12]} 14. Qxe3 {[%clk 0:01:28]}  axb5 {[%clk 0:01:12]} 15. Nxb5 {[%clk 0:01:28]}  Qb8 {[%clk 0:01:12]} 16. Nd6+ {[%clk 0:01:25]}  Kf8 {[%clk 0:01:12]} 17. Nxc8 {[%clk 0:01:14]}  Qxc8 {[%clk 0:01:12]} 18. Bf3 {[%clk 0:01:06]}  Ne7 {[%clk 0:00:59]} 19. Rd3 {[%clk 0:00:54]}  Qa8 {[%clk 0:00:58]} 20. Re1 {[%clk 0:00:46]}  Rh6 {[%clk 0:00:52]} 21. f5 {[%clk 0:00:35]}  Kg8 {[%clk 0:00:48]} 22. Qc5 {[%clk 0:00:26]}  exf5 {[%clk 0:00:21]} 23. exf5 {[%clk 0:00:20]}  Bxf3 {[%clk 0:00:17]} 24. Rxf3 {[%clk 0:00:20]}  Nc6 {[%clk 0:00:15]} 25. b4 {[%clk 0:00:19]}  h4 {[%clk 0:00:09]} 26. h3 {[%clk 0:00:18]}  Rh5 {[%clk 0:00:09]} 27. b5 {[%clk 0:00:19]}  Na5 {[%clk 0:00:09]} 28. Rc3 {[%clk 0:00:16]}  Kh7 {[%clk 0:00:06]} 29. Rf3 {[%clk 0:00:13]}  Nb7 {[%clk 0:00:04]} 30. Qb4 {[%clk 0:00:12]}  Qa7+ {[%clk 0:00:03]} 31. b6 {[%clk 0:00:13]}  Qb8 {[%clk 0:00:02]} 32. a4 {[%clk 0:00:10]}  Qa8 {[%clk 0:00:02]} 33. a5 {[%clk 0:00:09]}  Qxa5 {[%clk 0:00:02]} 34. Qxa5 {[%clk 0:00:09]}  Nxa5 {[%clk 0:00:02]} 35. Ra1 {[%clk 0:00:09]}  Nc6 {[%clk 0:00:03]} 36. b7 {[%clk 0:00:09]}  Ne4 {[%clk 0:00:02]} 37. Rb1 {[%clk 0:00:09]}  Nd2 {[%clk 0:00:01]} 38. Rfb3 {[%clk 0:00:01]}  Nxb1 {[%clk 0:00:01]} 39. Rxb1 {[%clk 0:00:00]}  Rxf5 {[%clk 0:00:01]} 0-1

[Event "December 5 Late 2023"]
[Site "https://www.chess.com"]
[Date "2023.12.05"]
[Round "9"]
[White "Paravyan, David"]
[Black "Miladinovic, Igor"]
[Result "0-1"]
[Board "7"]
[TimeControl "180+1"]
[WhiteFideId "4194985"]
[BlackFideId "4203380"]
[WhiteElo "3012"]
[BlackElo "2848"]
[WhiteTeam "FID"]
[BlackTeam "SRB"]
[WhiteClock "0:00:01"]
[BlackClock "0:00:45"]

1. e4 {[%clk 0:03:00]}  c5 {[%clk 0:02:59]} 2. Nf3 {[%clk 0:03:01]}  Nc6 {[%clk 0:03:00]} 3. Bb5 {[%clk 0:03:01]}  e6 {[%clk 0:03:00]} 4. O-O {[%clk 0:03:00]}  Nge7 {[%clk 0:03:00]} 5. Re1 {[%clk 0:02:59]}  a6 {[%clk 0:03:00]} 6. Bf1 {[%clk 0:02:58]}  b5 {[%clk 0:03:00]} 7. a4 {[%clk 0:02:57]}  b4 {[%clk 0:03:00]} 8. c3 {[%clk 0:02:52]}  Ng6 {[%clk 0:02:57]} 9. d4 {[%clk 0:02:51]}  bxc3 {[%clk 0:02:57]} 10. bxc3 {[%clk 0:02:52]}  cxd4 {[%clk 0:02:57]} 11. cxd4 {[%clk 0:02:53]}  Nb4 {[%clk 0:02:44]} 12. Bg5 {[%clk 0:02:40]}  Be7 {[%clk 0:02:40]} 13. Bxe7 {[%clk 0:02:40]}  Qxe7 {[%clk 0:02:41]} 14. Qd2 {[%clk 0:02:38]}  O-O {[%clk 0:02:39]} 15. h4 {[%clk 0:02:39]}  f5 {[%clk 0:02:23]} 16. d5 {[%clk 0:02:16]}  fxe4 {[%clk 0:02:19]} 17. Rxe4 {[%clk 0:02:17]}  Nxd5 {[%clk 0:02:18]} 18. h5 {[%clk 0:02:09]}  Ngf4 {[%clk 0:01:49]} 19. g3 {[%clk 0:02:02]}  Qf6 {[%clk 0:01:49]} 20. Ra3 {[%clk 0:01:45]}  Nxh5 {[%clk 0:01:46]} 21. Re5 {[%clk 0:01:42]}  Rb8 {[%clk 0:01:40]} 22. Rxh5 {[%clk 0:01:01]}  Rxb1 {[%clk 0:01:33]} 23. Kg2 {[%clk 0:01:00]}  Rb2 {[%clk 0:01:19]} 24. Qd3 {[%clk 0:00:59]}  g6 {[%clk 0:01:17]} 25. Rxd5 {[%clk 0:00:32]}  exd5 {[%clk 0:01:13]} 26. Rb3 {[%clk 0:00:32]}  Rxb3 {[%clk 0:01:00]} 27. Qxb3 {[%clk 0:00:33]}  Kg7 {[%clk 0:00:57]} 28. Be2 {[%clk 0:00:32]}  d4 {[%clk 0:00:55]} 29. Qd5 {[%clk 0:00:30]}  d6 {[%clk 0:00:53]} 30. Bc4 {[%clk 0:00:06]}  Qxf3+ {[%clk 0:00:44]} 31. Qxf3 {[%clk 0:00:01]}  Bh3+ {[%clk 0:00:45]} 0-1

[Event "December 5 Late 2023"]
[Site "https://www.chess.com"]
[Date "2023.12.05"]
[Round "9"]
[White "Sattarov, Bobir"]
[Black "Nakamura, Hikaru"]
[Result "0-1"]
[Board "8"]
[TimeControl "180+1"]
[WhiteFideId "14203081"]
[BlackFideId "2016192"]
[WhiteElo "2765"]
[BlackElo "3223"]
[WhiteTeam "UZB"]
[BlackTeam "USA"]
[WhiteClock "0:00:00"]
[BlackClock "0:00:29"]

1. e4 {[%clk 0:03:00]}  g6 {[%clk 0:03:00]} 2. d4 {[%clk 0:03:00]}  Bg7 {[%clk 0:03:00]} 3. Nc3 {[%clk 0:03:00]}  a6 {[%clk 0:03:00]} 4. f4 {[%clk 0:03:00]}  d6 {[%clk 0:02:52]} 5. Nf3 {[%clk 0:03:00]}  Bg4 {[%clk 0:02:52]} 6. Be3 {[%clk 0:02:46]}  Nc6 {[%clk 0:02:48]} 7. Be2 {[%clk 0:02:33]}  e6 {[%clk 0:02:48]} 8. O-O {[%clk 0:02:28]}  Nge7 {[%clk 0:02:48]} 9. Qd2 {[%clk 0:02:26]}  d5 {[%clk 0:02:46]} 10. e5 {[%clk 0:02:24]}  Nf5 {[%clk 0:02:40]} 11. Bf2 {[%clk 0:02:20]}  Bxf3 {[%clk 0:02:41]} 12. Bxf3 {[%clk 0:02:18]}  h5 {[%clk 0:02:41]} 13. g3 {[%clk 0:02:06]}  Na5 {[%clk 0:02:37]} 14. b3 {[%clk 0:02:04]}  b6 {[%clk 0:02:35]} 15. Nd1 {[%clk 0:02:03]}  Rc8 {[%clk 0:02:35]} 16. Ne3 {[%clk 0:02:01]}  Nxe3 {[%clk 0:02:33]} 17. Bxe3 {[%clk 0:02:01]}  c5 {[%clk 0:02:34]} 18. c4 {[%clk 0:01:42]}  dxc4 {[%clk 0:02:09]} 19. d5 {[%clk 0:01:41]}  cxb3 {[%clk 0:01:58]} 20. d6 {[%clk 0:01:16]}  O-O {[%clk 0:01:58]} 21. Qe2 {[%clk 0:01:12]}  b2 {[%clk 0:01:52]} 22. Rad1 {[%clk 0:01:03]}  b5 {[%clk 0:01:51]} 23. Qxb2 {[%clk 0:01:01]}  Nc4 {[%clk 0:01:51]} 24. Qe2 {[%clk 0:01:02]}  Nxe3 {[%clk 0:01:50]} 25. Qxe3 {[%clk 0:01:03]}  c4 {[%clk 0:01:49]} 26. Kg2 {[%clk 0:00:59]}  c3 {[%clk 0:01:49]} 27. Be4 {[%clk 0:00:58]}  Qa5 {[%clk 0:01:48]} 28. Rf2 {[%clk 0:00:58]}  b4 {[%clk 0:01:48]} 29. Bc2 {[%clk 0:00:55]}  Qc5 {[%clk 0:01:37]} 30. Qe4 {[%clk 0:00:50]}  a5 {[%clk 0:01:37]} 31. Ba4 {[%clk 0:00:49]}  Qc4 {[%clk 0:01:30]} 32. Rd4 {[%clk 0:00:48]}  Qc5 {[%clk 0:01:26]} 33. h3 {[%clk 0:00:48]}  Rcd8 {[%clk 0:01:04]} 34. g4 {[%clk 0:00:47]}  f5 {[%clk 0:01:04]} 35. exf6 {[%clk 0:00:38]}  Rxf6 {[%clk 0:01:03]} 36. d7 {[%clk 0:00:34]}  g5 {[%clk 0:00:42]} 37. f5 {[%clk 0:00:31]}  hxg4 {[%clk 0:00:41]} 38. hxg4 {[%clk 0:00:29]}  Rh6 {[%clk 0:00:40]} 39. f6 {[%clk 0:00:22]}  Bxf6 {[%clk 0:00:34]} 40. Qxe6+ {[%clk 0:00:21]}  Kg7 {[%clk 0:00:34]} 41. Qd5 {[%clk 0:00:08]}  Qxd4 {[%clk 0:00:28]} 42. Qxd4 {[%clk 0:00:07]}  Bxd4 {[%clk 0:00:29]} 43. Re2 {[%clk 0:00:00]}  Rd6 {[%clk 0:00:29]} 0-1

[Event "December 5 Late 2023"]
[Site "https://www.chess.com"]
[Date "2023.12.05"]
[Round "9"]
[White "Naroditsky, Daniel"]
[Black "Maksimovic, Bojan"]
[Result "0-1"]
[Board "9"]
[TimeControl "180+1"]
[WhiteFideId "2026961"]
[BlackFideId "14408120"]
[WhiteElo "3161"]
[BlackElo "2922"]
[WhiteTeam "USA"]
[BlackTeam "BIH"]
[WhiteClock "0:00:01"]
[BlackClock "0:00:36"]

1. d4 {[%clk 0:03:00]}  a6 {[%clk 0:02:59]} 2. e4 {[%clk 0:02:58]}  e6 {[%clk 0:02:59]} 3. Nf3 {[%clk 0:02:58]}  d5 {[%clk 0:03:00]} 4. Nbd2 {[%clk 0:02:58]}  c5 {[%clk 0:02:59]} 5. dxc5 {[%clk 0:02:58]}  Bxc5 {[%clk 0:03:00]} 6. Bd3 {[%clk 0:02:58]}  Nc6 {[%clk 0:02:55]} 7. O-O {[%clk 0:02:58]}  Nf6 {[%clk 0:02:53]} 8. e5 {[%clk 0:02:40]}  Ng4 {[%clk 0:02:51]} 9. Nb3 {[%clk 0:02:40]}  Ba7 {[%clk 0:02:49]} 10. Bf4 {[%clk 0:02:31]}  Qc7 {[%clk 0:02:45]} 11. h3 {[%clk 0:02:22]}  Ngxe5 {[%clk 0:02:43]} 12. Nxe5 {[%clk 0:02:22]}  Nxe5 {[%clk 0:02:41]} 13. Qh5 {[%clk 0:02:13]}  Bb8 {[%clk 0:02:31]} 14. Kh1 {[%clk 0:02:07]}  g6 {[%clk 0:02:25]} 15. Qe2 {[%clk 0:01:15]}  f6 {[%clk 0:02:25]} 16. Bg3 {[%clk 0:01:08]}  O-O {[%clk 0:02:25]} 17. Rae1 {[%clk 0:01:01]}  Bd7 {[%clk 0:02:25]} 18. f4 {[%clk 0:00:53]}  Nxd3 {[%clk 0:02:25]} 19. cxd3 {[%clk 0:00:54]}  Qd6 {[%clk 0:01:54]} 20. Nd4 {[%clk 0:00:50]}  Ba7 {[%clk 0:01:51]} 21. Nf3 {[%clk 0:00:43]}  Rae8 {[%clk 0:01:50]} 22. Bh2 {[%clk 0:00:40]}  Qb4 {[%clk 0:01:45]} 23. a3 {[%clk 0:00:39]}  Qb3 {[%clk 0:01:42]} 24. Bg1 {[%clk 0:00:38]}  Bb8 {[%clk 0:01:34]} 25. Bc5 {[%clk 0:00:35]}  Rf7 {[%clk 0:01:32]} 26. Nd4 {[%clk 0:00:35]}  Qa4 {[%clk 0:01:31]} 27. Bb4 {[%clk 0:00:28]}  Bc8 {[%clk 0:01:29]} 28. f5 {[%clk 0:00:19]}  e5 {[%clk 0:01:23]} 29. Qg4 {[%clk 0:00:19]}  exd4 {[%clk 0:01:16]} 30. Qh4 {[%clk 0:00:09]}  Bxf5 {[%clk 0:01:03]} 31. Qxd4 {[%clk 0:00:05]}  Qd7 {[%clk 0:00:54]} 32. g4 {[%clk 0:00:03]}  Be6 {[%clk 0:00:51]} 33. Rxf6 {[%clk 0:00:03]}  Rxf6 {[%clk 0:00:50]} 34. Qxf6 {[%clk 0:00:03]}  d4 {[%clk 0:00:50]} 35. Rf1 {[%clk 0:00:02]}  Qf7 {[%clk 0:00:47]} 36. Kg1 {[%clk 0:00:01]}  Qxf6 {[%clk 0:00:45]} 37. Rxf6 {[%clk 0:00:02]}  Be5 {[%clk 0:00:45]} 38. Rf1 {[%clk 0:00:02]}  Bd5 {[%clk 0:00:43]} 39. Bd2 {[%clk 0:00:02]}  Bc6 {[%clk 0:00:42]} 40. Bh6 {[%clk 0:00:02]}  Bg7 {[%clk 0:00:42]} 41. Bxg7 {[%clk 0:00:02]}  Kxg7 {[%clk 0:00:42]} 42. Rf4 {[%clk 0:00:03]}  Re2 {[%clk 0:00:39]} 43. Rxd4 {[%clk 0:00:04]}  Rxb2 {[%clk 0:00:39]} 44. h4 {[%clk 0:00:04]}  Ra2 {[%clk 0:00:38]} 45. h5 {[%clk 0:00:05]}  gxh5 {[%clk 0:00:38]} 46. gxh5 {[%clk 0:00:06]}  Rxa3 {[%clk 0:00:38]} 47. Rg4+ {[%clk 0:00:06]}  Kh6 {[%clk 0:00:38]} 48. d4 {[%clk 0:00:06]}  Kxh5 {[%clk 0:00:37]} 49. Rg7 {[%clk 0:00:07]}  Kh6 {[%clk 0:00:36]} 50. Rg8 {[%clk 0:00:07]}  Rd3 {[%clk 0:00:36]} 51. d5 {[%clk 0:00:07]}  Rxd5 {[%clk 0:00:36]} 52. Kh2 {[%clk 0:00:05]}  Rh5+ {[%clk 0:00:36]} 53. Kg3 {[%clk 0:00:02]}  Rg5+ {[%clk 0:00:36]} 54. Kh4 {[%clk 0:00:01]}  Rxg8 {[%clk 0:00:36]} 0-1

[Event "December 5 Late 2023"]
[Site "https://www.chess.com"]
[Date "2023.12.05"]
[Round "9"]
[White "Svane, Rasmus"]
[Black "Dmitrenko, Viktor"]
[Result "1-0"]
[Board "17"]
[TimeControl "180+1"]
[WhiteFideId "4657101"]
[BlackFideId "14110270"]
[WhiteElo "2934"]
[BlackElo "2467"]
[WhiteTeam "GER"]
[BlackTeam "UKR"]
[WhiteClock "0:00:28"]
[BlackClock "0:00:00"]

1. Nf3 {[%clk 0:02:56]}  e6 {[%clk 0:03:00]} 2. g3 {[%clk 0:02:55]}  d5 {[%clk 0:02:59]} 3. Bg2 {[%clk 0:02:54]}  Nf6 {[%clk 0:02:59]} 4. O-O {[%clk 0:02:53]}  Be7 {[%clk 0:02:59]} 5. c4 {[%clk 0:02:52]}  O-O {[%clk 0:02:59]} 6. b3 {[%clk 0:02:51]}  c5 {[%clk 0:02:56]} 7. cxd5 {[%clk 0:02:51]}  exd5 {[%clk 0:02:55]} 8. d4 {[%clk 0:02:50]}  Nc6 {[%clk 0:02:54]} 9. Bb2 {[%clk 0:02:50]}  Bg4 {[%clk 0:02:54]} 10. Ne5 {[%clk 0:02:46]}  cxd4 {[%clk 0:02:43]} 11. Nxc6 {[%clk 0:02:44]}  bxc6 {[%clk 0:02:42]} 12. Qxd4 {[%clk 0:02:37]}  Bxe2 {[%clk 0:02:23]} 13. Re1 {[%clk 0:02:37]}  Ba6 {[%clk 0:01:57]} 14. Nc3 {[%clk 0:02:06]}  c5 {[%clk 0:01:51]} 15. Qa4 {[%clk 0:02:06]}  Bb7 {[%clk 0:01:44]} 16. Rad1 {[%clk 0:02:05]}  Re8 {[%clk 0:00:39]} 17. Nxd5 {[%clk 0:01:39]}  Nxd5 {[%clk 0:00:37]} 18. Qc4 {[%clk 0:01:36]}  Bf6 {[%clk 0:00:19]} 19. Rxe8+ {[%clk 0:01:19]}  Qxe8 {[%clk 0:00:18]} 20. Bxf6 {[%clk 0:01:19]}  Nxf6 {[%clk 0:00:09]} 21. Bxb7 {[%clk 0:01:19]}  Rb8 {[%clk 0:00:10]} 22. Bf3 {[%clk 0:01:19]}  Qe7 {[%clk 0:00:09]} 23. Rc1 {[%clk 0:01:15]}  Rc8 {[%clk 0:00:09]} 24. Kg2 {[%clk 0:01:06]}  h5 {[%clk 0:00:08]} 25. b4 {[%clk 0:01:05]}  Nd7 {[%clk 0:00:08]} 26. Bxh5 {[%clk 0:01:01]}  Ne5 {[%clk 0:00:08]} 27. Qd5 {[%clk 0:00:40]}  Qg5 {[%clk 0:00:08]} 28. Rxc5 {[%clk 0:00:26]}  Rxc5 {[%clk 0:00:06]} 29. bxc5 {[%clk 0:00:27]}  Qxh5 {[%clk 0:00:00]} 30. c6 {[%clk 0:00:28]} 1-0